fUST/lending_fUST_20250617
["ID","MTS","AMOUNT","RATE_DAILY","PERIOD"]
[366266003,1750167038939,-467.81868285,0.0002045,2]
[366266004,1750167038949,-500.0,0.0002045,2]
[366266005,1750167038959,-500.0,0.00020492,2]
[366266006,1750167038969,-510.0,0.000205,2]
[366266007,1750167038980,-169.868311,0.00020584,2]
[366266008,1750167038991,-246.529,0.00020586,2]
[366266009,1750167039001,-1265.28,0.000206,2]
[366266010,1750167039012,-169.868311,0.00020687,2]
[366266011,1750167039022,-255.927322,0.00020693,2]
[366266012,1750167039031,-257.93703689,0.00020704,2]
[366266013,1750167039041,-500.0,0.000208,2]
[366266014,1750167039050,-508.00991228,0.000208,2]
[366266015,1750167039060,-202.76013016,0.000208,2]
[366266016,1750167039070,-437.31259665,0.000208,2]
[366266017,1750167039079,-500.0,0.00020898,2]
[366266018,1750167039090,-500.0,0.00020898,2]
[366266019,1750167039101,-1005.04697599,0.00020898,2]
[366266020,1750167039111,-1000.0,0.00020898,2]
[366266021,1750167039121,-500.0,0.000209,2]
[366266022,1750167039131,-203.63985076,0.000209,4]
[366266023,1750167039140,-151.8827175,0.00020934,2]
[366266024,1750167039150,-500.0,0.00020945,2]
[366266025,1750167039160,-168.0,0.00020983,2]
[366266026,1750167039169,-550.96515834,0.00020998,2]
[366266027,1750167039179,-512.94910348,0.00020998,2]
[366266028,1750167039189,-500.0,0.00020998,2]
[366266029,1750167039199,-5328.55570593,0.00021,2]
[366266030,1750167039209,-203.63985057,0.00021092,4]
[366266031,1750167039219,-184.48794102,0.00021185,2]
[366266032,1750167039229,-203.63985057,0.00021285,5]
[366266033,1750167039240,-1000.0,0.00021348,2]
[366266034,1750167039250,-257.93703689,0.0002142,2]
[366266035,1750167039260,-1500.0,0.00021446,2]
[366266036,1750167039269,-1000.0,0.00021448,2]
[366266037,1750167039279,-198.500789,0.00021452,2]
[366266038,1750167039289,-203.63985057,0.00021477,5]
[366266039,1750167039298,-203.63985057,0.00021669,5]
[366266040,1750167039308,-320.0,0.00021777,2]
[366266041,1750167039318,-475.62,0.0002181,5]
[366266042,1750167039328,-184.48794099,0.00021814,2]
[366266043,1750167039339,-420.0,0.00021828,2]
[366266044,1750167039348,-203.63985057,0.00021862,6]
[366266045,1750167039358,-480.0,0.00021881,2]
[366266046,1750167039368,-1500.0,0.00021896,2]
[366266047,1750167039378,-166.0,0.00021918,2]
[366266048,1750167039390,-475.62,0.00021955,11]
[366266049,1750167039400,-2000.0,0.00021994,2]
[366266050,1750167039410,-125390.27070024,0.00021995,2]
[366266051,1750167039420,-26787.40210237,0.00022,2]
[366266052,1750167039431,-12540.12310952,0.00022015,2]
[366266053,1750167039440,-160.0,0.00022015,2]
[366266054,1750167039450,-160.0,0.00022015,2]
[366266055,1750167039463,-229.94211981,0.00022015,2]
[366266056,1750167039473,-835.82910252,0.00022015,2]
[366266057,1750167039482,-424.62582665,0.00022015,2]
[366266058,1750167039493,-213.39869953,0.00022026,2]
[366266059,1750167039503,-160.0,0.00022027,2]
[366266060,1750167039513,-160.0,0.00022027,2]
[366266061,1750167039523,-845.62440851,0.00022027,2]
[366266062,1750167039533,-160.0,0.00022027,2]
[366266063,1750167039543,-500.0,0.00022048,2]
[366266064,1750167039553,-203.63985057,0.00022054,6]
[366266065,1750167039563,-475.62,0.000221,5]
[366266066,1750167039573,-502.67348192,0.000221,2]
[366266067,1750167039583,-503.03143341,0.000221,2]
[366266068,1750167039592,-257.93703689,0.00022137,2]
[366266069,1750167039601,-1265.28,0.000222,7]
[366266070,1750167039610,-475.62,0.00022245,10]
[366266071,1750167039621,-203.63985057,0.00022246,6]
[366266072,1750167039630,-763.64,0.00022355,5]
[366266073,1750167039640,-475.62,0.0002239,8]
[366266074,1750167039650,-180.6,0.00022396,2]
[366266075,1750167039659,-203.63985057,0.00022438,7]
[366266076,1750167039669,-184.48794099,0.00022443,2]
[366266077,1750167039678,-1500.0,0.00022444,2]
[366266078,1750167039687,-763.64,0.00022455,5]
[366266079,1750167039697,-475.62,0.00022535,9]
[366266080,1750167039707,-2500.0,0.00022542,2]
[366266081,1750167039717,-763.64,0.00022555,3]
[366266082,1750167039727,-203.63985057,0.00022631,7]
[366266083,1750167039738,-763.64,0.00022655,5]
[366266084,1750167039748,-475.62,0.0002268,9]
[366266085,1750167039759,-500.0,0.00022684,2]
[366266086,1750167039768,-763.64,0.00022755,5]
[366266087,1750167039778,-203.63985057,0.00022823,8]
[366266088,1750167039788,-475.62,0.00022825,10]
[366266089,1750167039797,-257.93703689,0.00022854,2]
[366266090,1750167039806,-763.64,0.00022855,2]
[366266096,1750167039916,-763.64,0.00022955,7]
[366266098,1750167039927,-475.62,0.0002297,7]
[366266100,1750167039937,-500.0,0.00022979,2]
[366266103,1750167039947,-207.4,0.00022987,2]
[366266106,1750167039956,-500.0,0.00022993,2]
[366266109,1750167039966,-203.63985057,0.00023015,8]
[366266111,1750167039976,-500.0,0.00023045,2]
[366266113,1750167039986,-763.64,0.00023055,7]
[366266115,1750167039995,-184.48794099,0.00023071,2]
[366266118,1750167040006,-3000.0,0.0002309,2]
[366266120,1750167040015,-475.62,0.00023114,10]
[366266121,1750167040025,-189.6,0.00023131,3]
[366266123,1750167040034,-568.8,0.00023145,3]
[366266125,1750167040044,-500.0,0.0002315,2]
[366266127,1750167040054,-763.64,0.00023155,7]
[366266129,1750167040064,-500.0,0.00023174,2]
[366266132,1750167040074,-500.0,0.00023178,2]
[366266134,1750167040083,-203.63985057,0.00023208,8]
[366266136,1750167040093,-300.0619058,0.00023253,2]
[366266138,1750167040102,-763.64,0.00023255,3]
[366266140,1750167040112,-475.62,0.00023259,5]
[366266143,1750167040122,-500.0,0.00023289,2]
[366266145,1750167040132,-500.0,0.00023323,2]
[366266148,1750167040141,-500.0,0.00023329,2]
[366266151,1750167040151,-431.51684275,0.0002334,2]
[366266153,1750167040161,-763.64,0.00023355,4]
[366266156,1750167040171,-500.0,0.00023388,2]
[366266158,1750167040180,-203.63985057,0.000234,9]
[366266159,1750167040190,-1265.28,0.000234,7]
[366266160,1750167040199,-475.62,0.00023404,7]
[366266162,1750167040209,-500.0,0.0002342,2]
[366266164,1750167040219,-500.0,0.00023441,2]
[366266165,1750167040229,-763.64,0.00023455,7]
[366266168,1750167040239,-361.19,0.00023462,2]
[366266170,1750167040249,-500.0,0.00023495,2]
[366266172,1750167040259,-500.0,0.00023505,2]
[366266173,1750167040268,-194.13668949,0.00023509,2]
[366266176,1750167040280,-475.62,0.00023549,5]
[366266178,1750167040289,-763.64,0.00023555,4]
[366266181,1750167040300,-257.93703689,0.00023571,2]
[366266184,1750167040309,-500.0,0.00023575,2]
[366266186,1750167040319,-203.63985057,0.00023592,9]
[366266189,1750167040329,-500.0,0.00023593,2]
[366266191,1750167040340,-151.0,0.000236,8]
[366266193,1750167040350,-500.0,0.00023602,2]
[366266195,1750167040360,-500.0,0.00023625,2]
[366266197,1750167040370,-3500.0,0.00023638,2]
[366266199,1750167040381,-500.0,0.00023641,2]
[366266201,1750167040394,-500.0,0.00023646,2]
[366266203,1750167040404,-500.0,0.00023649,2]
[366266205,1750167040414,-763.64,0.00023655,2]
[366266207,1750167040424,-475.62,0.00023694,11]
[366266209,1750167040435,-184.48794099,0.000237,2]
[366266211,1750167040445,-500.0,0.00023713,2]
[366266213,1750167040454,-763.64,0.00023755,2]
[366266215,1750167040465,-587.0,0.00023767,2]
[366266217,1750167040476,-406.0,0.00023775,2]
[366266219,1750167040486,-500.0,0.0002378,2]
[366266221,1750167040496,-11233.29213608,0.0002378,5]
[366266223,1750167040506,-203.63985057,0.00023785,9]
[366266225,1750167040516,-135235.9412712,0.00023788,2]
[366266227,1750167040527,-310028.64915056,0.000238,2]
[366266291,1750167041471,-0.01265092,0.00019999,2]
[366266310,1750167071754,190.0,0.00024658,120]
[366266326,1750167295541,10000.0,0.00019,2]
[366266327,1750167303138,1072.30651077,0.00018,2]
[366266328,1750167323151,7506.0,0.00019,2]
[366266332,1750167599879,-600.0,0.00019396,2]
[366266333,1750167599902,-199.82799747,0.00019609,2]
[366266334,1750167599925,-5000.0,0.00019699,2]
[366266335,1750167599948,-200.03128008,0.00019798,2]
[366266336,1750167599971,-153.37185513,0.00019898,2]
[366266337,1750167599994,-177.32,0.00020016,2]
[366266338,1750167600016,-1000.0,0.00020049,2]
[366266339,1750167600040,-766.12197,0.00020371,2]
[366266340,1750167600062,-858.95690863,0.00021581,2]
[366266341,1750167600085,-600.0,0.00021588,2]
[366266342,1750167600108,-300.0,0.00021589,2]
[366266343,1750167600132,-144.36998869,0.00021696,2]
[366266347,1750167736506,611.200607,0.00013699,2]
[366266348,1750167743306,158.08975124,0.00013699,2]
[366266358,1750167990332,717.88059115,0.000189,2]
[366266366,1750168177631,5000.0,0.00019,2]
[366266428,1750168232585,-5000.0,0.00019192,2]
[366266430,1750168232595,-187.09749979,0.00019386,2]
[366266432,1750168232606,-275.70649851,0.00019677,2]
[366266434,1750168232615,-1200.0,0.00019774,2]
[366266436,1750168232625,-500.0,0.00019775,2]
[366266438,1750168232635,-500.0,0.00019775,2]
[366266440,1750168232645,-500.0,0.00019775,2]
[366266442,1750168232655,-486.6435926,0.00019775,2]
[366266444,1750168232668,-13.3564074,0.00019775,2]
[366266446,1750168232678,-500.0,0.00019775,2]
[366266448,1750168232688,-500.0,0.00019775,2]
[366266450,1750168232697,-500.0,0.00019775,2]
[366266452,1750168232709,-500.0,0.00019775,2]
[366266454,1750168232721,-321.13671712,0.00019775,2]
[366266456,1750168232732,-178.86328288,0.00019775,2]
[366266457,1750168232743,-500.0,0.00019775,2]
[366266459,1750168232753,-500.0,0.00019775,2]
[366266460,1750168232764,-500.0,0.00019775,2]
[366266462,1750168232774,-500.0,0.00019775,2]
[366266464,1750168232783,-500.0,0.00019775,2]
[366266466,1750168232793,-500.0,0.00019775,2]
[366266467,1750168232802,-206.50306707,0.00019775,2]
[366266469,1750168232812,-500.0,0.00019775,2]
[366266471,1750168232824,-500.0,0.00019775,2]
[366266473,1750168232836,-500.0,0.00019775,2]
[366266474,1750168232846,-500.0,0.00019775,2]
[366266475,1750168232855,-500.0,0.00019775,2]
[366266477,1750168232865,-297.6548701,0.00019775,2]
[366266576,1750168238514,-5000.0,0.00019578,2]
[366266579,1750168238524,-500.0,0.00019774,2]
[366266581,1750168238534,-500.0,0.00019774,2]
[366266583,1750168238544,-500.0,0.00019774,2]
[366266585,1750168238555,-500.0,0.00019774,2]
[366266587,1750168238566,-500.0,0.00019774,2]
[366266590,1750168238578,-500.0,0.00019774,2]
[366266593,1750168238588,-500.0,0.00019774,2]
[366266596,1750168238599,-500.0,0.00019774,2]
[366266599,1750168238610,-500.0,0.00019774,2]
[366266601,1750168238620,-500.0,0.00019774,2]
[366266604,1750168238630,-202.76092362,0.00019774,2]
[366266607,1750168238639,-500.0,0.00019774,2]
[366266610,1750168238650,-500.0,0.00019774,2]
[366266613,1750168238660,-500.0,0.00019774,2]
[366266616,1750168238671,-500.0,0.00019774,2]
[366266618,1750168238681,-500.0,0.00019774,2]
[366266620,1750168238692,-500.0,0.00019774,2]
[366266623,1750168238702,-500.0,0.00019774,2]
[366266625,1750168238712,-300.0,0.00019776,2]
[366266626,1750168238723,-24900.0,0.00019777,2]
[366266628,1750168238733,-277.48064336,0.000199,2]
[366266630,1750168238746,-500.0,0.00019999,2]
[366266632,1750168238755,-500.0,0.00019999,2]
[366266634,1750168238766,-500.0,0.00019999,2]
[366266635,1750168238775,-500.0,0.00019999,2]
[366266636,1750168238786,-380.12125238,0.00019999,2]
[366266637,1750168238795,-500.0,0.00019999,2]
[366266638,1750168238954,-500.0,0.00019999,2]
[366266639,1750168238965,-500.0,0.00019999,2]
[366266640,1750168238975,-500.0,0.00019999,2]
[366266641,1750168238986,-500.0,0.00019999,2]
[366266642,1750168238997,-500.0,0.00019999,2]
[366266643,1750168239007,-500.0,0.00019999,2]
[366266644,1750168239018,-3122.69348923,0.0002,2]
[366266645,1750168239028,-500.0,0.0002015,2]
[366266646,1750168239038,-500.0,0.0002015,2]
[366266647,1750168239048,-500.0,0.0002015,2]
[366266648,1750168239058,-261.05356942,0.0002015,2]
[366266649,1750168239068,-158.862319,0.00020156,2]
[366266650,1750168239078,-611.200607,0.00020187,2]
[366266651,1750168239088,-500.0,0.00020492,2]
[366266652,1750168239097,-277.4806433,0.00020631,2]
[366266653,1750168239107,-666.0,0.00020645,2]
[366266654,1750168239118,-1000.0,0.00020698,2]
[366266655,1750168239128,-1000.0,0.00020698,2]
[366266656,1750168239137,-500.0,0.0002075,2]
[366266657,1750168239147,-298.57844852,0.000209,4]
[366266658,1750168239157,-736.09250056,0.00020929,2]
[366266659,1750168239166,-298.57844852,0.00021072,4]
[366266660,1750168239176,-250.0,0.00021075,2]
[366266661,1750168239186,-298.57844852,0.00021245,4]
[366266662,1750168239196,-1033.25325192,0.00021246,2]
[366266663,1750168239207,-500.0,0.00021298,2]
[366266664,1750168239217,-277.4806433,0.00021363,2]
[366266665,1750168239227,-298.57844852,0.00021417,5]
[366266666,1750168239237,-420.0,0.00021539,2]
[366266667,1750168239248,-298.57844852,0.0002159,5]
[366266668,1750168239257,-260.074,0.0002159,2]
[366266669,1750168239267,-10000.0,0.0002159,2]
[366266670,1750168239277,-480.0,0.00021641,2]
[366266671,1750168239287,-500.0,0.000217,2]
[366266672,1750168239297,-500.0,0.000217,2]
[366266673,1750168239306,-500.0,0.000217,2]
[366266674,1750168239315,-297.45975151,0.000217,2]
[366266675,1750168239325,-161.48212166,0.000217,2]
[366266676,1750168239335,-160.0,0.00021756,3]
[366266677,1750168239345,-166.2831795,0.0002176,2]
[366266678,1750168239355,-298.57844852,0.00021762,5]
[366266679,1750168239364,-336.77,0.0002181,10]
[366266680,1750168239374,-2170.21871544,0.00021832,2]
[366266681,1750168239383,-500.0,0.0002185,2]
[366266682,1750168239393,-500.0,0.0002185,2]
[366266683,1750168239403,-229.94211981,0.00021901,2]
[366266684,1750168239413,-12540.12310952,0.00021901,2]
[366266685,1750168239422,-835.82910252,0.00021901,2]
[366266686,1750168239432,-424.62582665,0.00021901,2]
[366266687,1750168239442,-160.0,0.00021901,2]
[366266688,1750168239452,-160.0,0.00021901,2]
[366266689,1750168239462,-160.0,0.00021913,2]
[366266690,1750168239472,-213.39869953,0.00021913,2]
[366266691,1750168239482,-160.0,0.00021913,2]
[366266692,1750168239492,-845.62440851,0.00021913,2]
[366266693,1750168239503,-298.57844852,0.00021934,6]
[366266694,1750168239513,-169.0,0.00022,2]
[366266695,1750168239523,-277.4806433,0.00022094,2]
[366266696,1750168239533,-298.57844852,0.00022107,6]
[366266697,1750168239545,-336.77,0.00022116,2]
[366266698,1750168239555,-196.31313804,0.00022248,2]
[366266699,1750168239565,-298.57844852,0.00022279,6]
[366266700,1750168239575,-193.59,0.00022418,2]
[366266701,1750168239584,-336.77,0.00022422,11]
[366266702,1750168239594,-298.57844852,0.00022452,7]
[366266703,1750168239604,-160.0,0.00022457,2]
[366266704,1750168239614,-298.57844852,0.00022624,7]
[366266705,1750168239624,-500.0,0.00022684,2]
[366266706,1750168239634,-336.77,0.00022728,12]
[366266707,1750168239643,-298.57844852,0.00022797,7]
[366266708,1750168239653,-277.4806433,0.00022825,2]
[366266709,1750168239663,-298.57844852,0.00022969,8]
[366266710,1750168239673,-207.4,0.00022987,2]
[366266711,1750168239683,-202.43673506,0.00023,2]
[366266712,1750168239692,-336.77,0.00023034,5]
[366266713,1750168239702,-298.57844852,0.00023141,8]
[366266714,1750168239712,-500.0,0.00023214,2]
[366266715,1750168239723,-500.0,0.00023249,2]
[366266716,1750168239733,-500.0,0.00023289,2]
[366266717,1750168239744,-500.0,0.00023299,2]
[366266718,1750168239754,-298.57844852,0.00023314,9]
[366266719,1750168239764,-160.0,0.00023328,4]
[366266720,1750168239774,-336.77,0.0002334,3]
[366266721,1750168239785,-500.0,0.00023413,2]
[366266722,1750168239794,-387.18,0.00023485,2]
[366266723,1750168239806,-298.57844852,0.00023486,9]
[366266724,1750168239816,-500.0,0.00023527,2]
[366266725,1750168239829,-277.4806433,0.00023556,2]
[366266726,1750168239839,-336.77,0.00023646,10]
[366266727,1750168239849,-298.57844852,0.00023659,9]
[366266728,1750168239859,-6000.0,0.00023689,3]
[366266729,1750168239870,-1471.83174468,0.000237,2]
[366266730,1750168239881,-1134.37570124,0.000237,2]
[366266731,1750168239890,-500.0,0.00023719,2]
[366266732,1750168239901,-168.0,0.00023744,2]
[366266733,1750168239912,-500.0,0.00023745,2]
[366266734,1750168239922,-500.0,0.00023773,2]
[366266735,1750168239932,-697.664003,0.00023787,3]
[366266737,1750168239942,-379.2,0.0002379,3]
[366266739,1750168239952,-500.0,0.00023799,2]
[366266740,1750168239962,-125231.92121801,0.000238,2]
[366266741,1750168239973,-452985.39352237,0.000238,3]
[366266742,1750168239983,-1333.54635139,0.000238,5]
[366266743,1750168239995,-5096.01,0.000238,7]
[366266744,1750168240005,-1078.39,0.000238,7]
[366266745,1750168240015,-132976.86,0.000238,2]
[366266746,1750168240025,-12540.12310952,0.000238,3]
[366266747,1750168240035,-424.62582665,0.000238,3]
[366266748,1750168240045,-160.0,0.000238,3]
[366266749,1750168240055,-843.4096045,0.000238,3]
[366266750,1750168240065,-229.94211981,0.000238,3]
[366266751,1750168240074,-835.82910252,0.000238,3]
[366266752,1750168240084,-297.53944413,0.00023811,2]
[366266753,1750168240094,-160.0,0.00023827,2]
[366266754,1750168240103,-298.57844852,0.00023831,10]
[366266755,1750168240114,-166.96849292,0.00023846,2]
[366266756,1750168240124,-763.64,0.00023855,4]
[366266757,1750168240133,-500.0,0.00023876,2]
[366266758,1750168240144,-500.0,0.00023882,2]
[366266759,1750168240154,-228.37485425,0.00023889,2]
[366266760,1750168240165,-717.88059115,0.000239,2]
[366266761,1750168240175,-500.0,0.00023906,2]
[366266762,1750168240185,-510.2859812,0.00023906,2]
[366266763,1750168240195,-500.0,0.0002391,2]
[366266764,1750168240206,-500.0,0.0002395,2]
[366266769,1750168240303,-336.77,0.00023952,4]
[366266770,1750168240314,-763.64,0.00023955,7]
[366266771,1750168240325,-728.35296182,0.0002396,2]
[366266772,1750168240335,-692.15,0.00024,2]
[366266773,1750168240345,-2637.98,0.00024,30]
[366266774,1750168240355,-331.35063543,0.00024,14]
[366266775,1750168240365,-145650.0,0.00024,30]
[366266776,1750168240376,-298.57844852,0.00024003,10]
[366266777,1750168240386,-151.0,0.00024051,7]
[366266778,1750168240396,-763.64,0.00024055,3]
[366266780,1750168240406,-500.0,0.00024063,2]
[366266781,1750168240416,-320.0,0.00024092,2]
[366266782,1750168240426,-14433.85412417,0.000241,2]
[366266783,1750168240436,-33008.27595317,0.000241,2]
[366266784,1750168240446,-34608.084976,0.000241,2]
[366266785,1750168240456,-500.0,0.00024101,2]
[366266787,1750168240466,-437.60764747,0.00024109,6]
[366266788,1750168240476,-422.79873476,0.00024109,6]
[366266789,1750168240486,-460.0,0.00024109,6]
[366266790,1750168240495,-460.0,0.00024109,6]
[366266791,1750168240506,-460.0,0.00024109,6]
[366266792,1750168240516,-403.28172485,0.00024109,6]
[366266793,1750168240526,-460.0,0.00024109,6]
[366266794,1750168240536,-434.87258221,0.00024109,6]
[366266795,1750168240546,-460.0,0.00024109,6]
[366266796,1750168240555,-460.0,0.00024109,6]
[366266797,1750168240565,-440.58228705,0.00024109,6]
[366266798,1750168240575,-460.0,0.00024109,6]
[366266799,1750168240585,-374.95042484,0.00024109,6]
[366266800,1750168240594,-460.0,0.00024109,6]
[366266801,1750168240604,-460.0,0.00024109,6]
[366266802,1750168240614,-460.0,0.00024109,6]
[366266803,1750168240623,-460.0,0.00024109,6]
[366266804,1750168240634,-460.0,0.00024109,6]
[366266805,1750168240643,-433.86703452,0.00024109,6]
[366266806,1750168240653,-443.84815153,0.00024109,6]
[366266807,1750168240662,-597.9676318,0.00024109,6]
[366266808,1750168240672,-460.0,0.00024109,6]
[366266809,1750168240682,-430.0,0.00024109,6]
[366266810,1750168240692,-435.81798436,0.00024109,6]
[366266811,1750168240702,-423.62566824,0.00024109,6]
[366266812,1750168240711,-436.48493951,0.00024109,6]
[366266813,1750168240720,-460.0,0.00024109,6]
[366266814,1750168240730,-405.76846984,0.00024109,6]
[366266815,1750168240739,-378.82708514,0.00024109,6]
[366266816,1750168240750,-460.0,0.00024109,6]
[366266817,1750168240760,-460.0,0.00024109,6]
[366266818,1750168240770,-443.32240855,0.00024109,6]
[366266819,1750168240780,-431.48943056,0.00024109,6]
[366266820,1750168240790,-384.86192728,0.00024109,6]
[366266821,1750168240801,-527.23078103,0.00024109,6]
[366266822,1750168240811,-165.50616548,0.00024109,6]
[366266823,1750168240821,-460.0,0.00024109,6]
[366266824,1750168240833,-440.0,0.00024109,6]
[366266825,1750168240842,-215.39622832,0.00024109,5]
[366266826,1750168240852,-460.0,0.00024109,6]
[366266827,1750168240861,-460.0,0.00024109,6]
[366266828,1750168240878,-460.0,0.00024109,6]
[366266829,1750168240900,-460.0,0.00024109,6]
[366266830,1750168240917,-300.0,0.00024109,6]
[366266831,1750168240937,-460.0,0.00024109,6]
[366266832,1750168240955,-444.69285065,0.00024109,6]
[366266833,1750168240977,-292.45853836,0.00024109,6]
[366266834,1750168240993,-460.0,0.00024109,6]
[366266835,1750168241012,-460.0,0.00024109,6]
[366266836,1750168241034,-460.0,0.00024109,6]
[366266837,1750168241048,-440.0,0.00024109,6]
[366266838,1750168241065,-460.0,0.00024109,6]
[366266839,1750168241084,-460.0,0.00024109,6]
[366266840,1750168241104,-402.66886999,0.00024109,6]
[366266841,1750168241125,-402.89091039,0.00024109,6]
[366266842,1750168241138,-460.0,0.00024109,6]
[366266843,1750168241152,-460.0,0.00024109,6]
[366266844,1750168241172,-460.0,0.00024109,6]
[366266845,1750168241187,-460.0,0.00024109,6]
[366266846,1750168241203,-460.0,0.00024109,6]
[366266847,1750168241217,-623.11181275,0.00024109,6]
[366266848,1750168241231,-460.0,0.00024109,6]
[366266849,1750168241246,-460.0,0.00024109,6]
[366266850,1750168241261,-460.0,0.00024109,6]
[366266851,1750168241276,-460.0,0.00024109,6]
[366266852,1750168241293,-460.0,0.00024109,6]
[366266853,1750168241308,-366.97104393,0.00024109,6]
[366266854,1750168241323,-460.0,0.00024109,6]
[366266855,1750168241339,-460.0,0.00024109,6]
[366266856,1750168241355,-440.0,0.00024109,6]
[366266857,1750168241371,-402.00990307,0.00024109,6]
[366266858,1750168241386,-279.16276251,0.00024109,6]
[366266859,1750168241401,-460.0,0.00024109,6]
[366266860,1750168241417,-460.0,0.00024109,6]
[366266861,1750168241432,-557.52864965,0.00024109,6]
[366266862,1750168241448,-460.0,0.00024109,6]
[366266863,1750168241463,-443.10082026,0.00024109,6]
[366266864,1750168241477,-460.0,0.00024109,6]
[366266865,1750168241493,-460.0,0.00024109,6]
[366266866,1750168241509,-460.0,0.00024109,6]
[366266867,1750168241524,-460.0,0.00024109,6]
[366266868,1750168241540,-460.0,0.00024109,6]
[366266869,1750168241557,-460.0,0.00024109,6]
[366266870,1750168241573,-460.0,0.00024109,6]
[366266871,1750168241589,-460.0,0.00024109,6]
[366266872,1750168241605,-440.0,0.00024109,6]
[366266873,1750168241621,-460.0,0.00024109,6]
[366266874,1750168241639,-503.55016483,0.00024109,6]
[366266875,1750168241654,-443.28540431,0.00024109,6]
[366266876,1750168241670,-460.0,0.00024109,6]
[366266877,1750168241686,-460.0,0.00024109,6]
[366266878,1750168241701,-460.0,0.00024109,6]
[366266879,1750168241717,-460.0,0.00024109,6]
[366266880,1750168241733,-460.0,0.00024109,6]
[366266881,1750168241749,-370.85700147,0.00024109,6]
[366266882,1750168241764,-460.0,0.00024109,6]
[366266883,1750168241774,-430.0,0.00024109,6]
[366266884,1750168241784,-432.75679058,0.00024109,6]
[366266885,1750168241793,-440.0,0.00024109,6]
[366266886,1750168241959,-460.0,0.00024109,6]
[366266887,1750168241989,-405.78461857,0.00024109,6]
[366266888,1750168242002,-460.0,0.00024109,6]
[366266889,1750168242012,-440.0,0.00024109,6]
[366266890,1750168242022,-460.0,0.00024109,6]
[366266891,1750168242032,-431.10135538,0.00024109,6]
[366266892,1750168242041,-460.0,0.00024109,6]
[366266893,1750168242051,-440.0,0.00024109,6]
[366266894,1750168242061,-445.51768629,0.00024109,6]
[366266895,1750168242070,-440.0,0.00024109,6]
[366266896,1750168242080,-460.0,0.00024109,6]
[366266897,1750168242090,-404.22975578,0.00024109,6]
[366266898,1750168242099,-460.0,0.00024109,6]
[366266899,1750168242109,-506.76639318,0.00024109,6]
[366266900,1750168242119,-460.93541062,0.00024109,6]
[366266901,1750168242128,-460.0,0.00024109,6]
[366266902,1750168242137,-460.0,0.00024109,6]
[366266903,1750168242147,-460.0,0.00024109,6]
[366266904,1750168242156,-460.0,0.00024109,6]
[366266905,1750168242166,-460.0,0.00024109,6]
[366266906,1750168242176,-460.0,0.00024109,6]
[366266907,1750168242185,-440.0,0.00024109,6]
[366266908,1750168242195,-460.0,0.00024109,6]
[366266909,1750168242204,-366.92895119,0.00024109,6]
[366266910,1750168242214,-478.0,0.00024109,6]
[366266911,1750168242223,-410.96682637,0.00024109,6]
[366266912,1750168242233,-460.0,0.00024109,6]
[366266913,1750168242242,-358.25964466,0.00024109,6]
[366266914,1750168242253,-460.0,0.00024109,6]
[366266915,1750168242263,-464.33495317,0.00024109,6]
[366266916,1750168242272,-460.0,0.00024109,6]
[366266917,1750168242282,-425.03390931,0.00024109,6]
[366266918,1750168242291,-460.0,0.00024109,6]